Cogmind - Beta 15 @@@ ROGUE MODE // 2025.06.15 @ 19:37:02 Player: McSaucyNugget Result: Destroyed by Enhanced Grunt with Neutron Cannon Performance ------------- Evolutions (3) 1500 Regions Visited (7) 1400 Robots Destroyed (58) 290 Value Destroyed (1764) 1764 Prototype IDs (216) 4320 Alien Tech Used (0) 0 Bonus (3300) 3300 TOTAL SCORE: 12574 Bonus ------- Met Data Miner 300 Used Data Conduit 3000 Cogmind --------- Core Integrity 0/700 Matter 196/300 Energy 43/100 System Corruption 2% Temperature Cool (0) Movement Walking (260) Ox2 Location -7/Data Miner Parts ------- > --- POWER (1) -------- (None) > --- PROPULSION (6) --- Improved Carbon-fiber Leg Improved Carbon-fiber Leg Improved Carbon-fiber Leg > --- UTILITY (4) ------ Huge Storage Unit Improved Signal Interpreter Makeshift Utility Shielding > --- WEAPON (2) ------- Katana > --- INVENTORY (25) --- Light Nuclear Core Improved Carbon-fiber Leg Improved Carbon-fiber Leg Improved Carbon-fiber Leg Improved Cooling System Advanced Targeting Computer Hardened Heavy Armor Plating Hacking Suite System Shield Enhanced Autogun Gauss Rifle Flak Gun Flak Gun Assault Cannon Mini Grenade Launcher Peak State ------------ > --- POWER ------------ Micro Nuclear Core > --- PROPULSION ------- Armored Treads Medium Treads Improved Carbon-fiber Leg Compact Wheel Armored Huge Wheel > --- UTILITY ---------- Huge Storage Unit Improved Sensor Array Improved Signal Interpreter Improved Medium Armor Plating > --- WEAPON ----------- Enhanced Autogun Gauss Rifle > --- INVENTORY -------- Light Nuclear Core Light Treads Improved Carbon-fiber Leg Improved Carbon-fiber Leg Improved Carbon-fiber Leg Improved Carbon-fiber Leg Improved Carbon-fiber Leg Improved Carbon-fiber Leg Compact Wheel Gravmag System Cooled Airjet Improved Cooling System Improved Sensor Array Hardened Heavy Armor Plating Improved Medium Armor Plating Hacking Suite System Shield Enhanced Autogun Gauss Rifle Flak Gun Flak Gun Assault Cannon Mini Grenade Launcher Katana [Rating: 51] Favorites ----------- Power Micro Nuclear Core Engine Improved Ion Engine Power Core Micro Nuclear Core Propulsion Light Treads Treads Light Treads Leg Improved Carbon-fiber Leg Wheel Compact Wheel Utility Huge Storage Unit Device Seismic Detector Storage Huge Storage Unit Processor Improved Signal Interpreter Hackware Hacking Suite Protection Light Armor Plating Weapon Enhanced Autogun Energy Gun Beam Rifle Ballistic Gun Enhanced Autogun Ballistic Cannon Light Cannon Launcher Mini Grenade Launcher Slashing Weapon Katana Build | -11 -10 -10 -8 -7 -7 -7 -7 ------- Run | Yrd Mat Sub Mat Fac Low Low Dat Slots Evolved 6 | . . . 4 2 . . . Power . | . . . . . . . . Propulsion 4 | . . . 2 2 . . . Utility 2 | . . . 2 . . . . Weapon . | . . . . . . . . Parts Attached 61 | 10 3 5 9 26 2 3 3 Power 6 | 2 . 1 . 3 . . . Engine 4 | 2 . 1 . 1 . . . Core 2 | . . . . 2 . . . Reactor . | . . . . . . . . Propulsion 23 | 4 1 . 2 14 . 1 1 Treads 7 | 2 . . . 5 . . . Leg 8 | 1 . . . 6 . . 1 Wheel 8 | 1 1 . 2 3 . 1 . Hover . | . . . . . . . . Flight . | . . . . . . . . Utility 15 | 2 1 1 3 4 1 1 2 Device 3 | 1 . . . 1 . 1 . Storage 2 | 1 1 . . . . . . Processor 1 | . . . 1 . . . . Hackware 1 | . . . . 1 . . . Protection 8 | . . 1 2 2 1 . 2 Artifact . | . . . . . . . . Weapon 17 | 2 1 3 4 5 1 1 . Energy Gun 6 | 1 . 2 1 1 1 . . Energy Cannon . | . . . . . . . . Ballistic Gun 7 | 1 . 1 2 2 . 1 . Ballistic Cannon 1 | . 1 . . . . . . Launcher 2 | . . . 1 1 . . . Special Weapon . | . . . . . . . . Impact Weapon . | . . . . . . . . Slashing Weapon 1 | . . . . 1 . . . Piercing Weapon . | . . . . . . . . Special Melee Weapon . | . . . . . . . . Unidentified Prototypes 3 | . . . 1 2 . . . Parts Lost 20 | . . 3 2 4 . . 11 Power 3 | . . 1 1 . . . 1 Propulsion 11 | . . 1 . 4 . . 6 Utility 4 | . . . 1 . . . 3 Weapon 2 | . . 1 . . . . 1 Highest Loss Streak 11 | . . 1 2 1 . . 11 To Critical Strikes . | . . . . . . . . Average Backups 19 | 4 7 9 20 24 23 23 21 Power 2 | . 1 1 4 1 1 1 1 Propulsion 6 | 3 5 5 5 8 9 8 6 Utility 4 | . . 1 3 6 5 6 7 Weapon 6 | . 1 1 7 7 8 7 6 Tool/Special . | . . . . . . . . Unused Backups 30 | . . 1 3 13 . 2 11 Power 5 | . . . 1 3 . . 1 Propulsion 4 | . . . . 1 . 2 1 Utility 12 | . . 1 1 5 . . 5 Weapon 9 | . . . 1 4 . . 4 Tool/Special . | . . . . . . . . Average Slot Usage (%) 96 | . 100 99 96 95 99 94 86 Engine 5 | . 14 14 8 1 . . . Core 3 | . . . . 4 7 7 5 Treads 16 | . 26 . 17 18 23 17 12 Leg 4 | . . . . 9 7 7 7 Wheel 16 | . 1 27 17 14 15 15 13 Device 6 | . 14 5 8 2 6 7 6 Storage 8 | . 14 14 9 7 7 7 7 Processor 6 | . . . 8 7 7 7 7 Hackware 1 | . . . . 4 . . . Protection 7 | . . 8 8 6 7 7 6 Energy Gun 4 | . 4 4 7 . 6 . . Ballistic Gun 10 | . 14 11 8 13 7 14 11 Ballistic Cannon 2 | . 9 12 2 . . . . Peak Build Rating 51 | 7 7 10 26 47 47 51 51 Average Rating 30 | 4 7 7 20 39 44 49 47 On Entrance 23 | . 7 7 9 22 46 45 51 Naked Turns . | . . . . . . . . Heaviest Build 101 | 15 91 96 97 100 101 101 101 Greatest Support 90 | 40 40 20 26 90 32 44 44 Greatest Overweight (x) 9 | 2 4 9 9 5 3 3 5 Average Overweight (x) 2 | . . 4 3 2 3 2 2 Largest Inventory Capacity 25 | 8 25 25 25 25 25 25 25 Average Capacity 23 | 6 9 25 25 25 25 25 25 Most Carried 25 | 7 8 12 25 25 25 25 24 Average Carried 20 | 4 7 9 20 24 24 24 22 Final Capacity 25 | 8 25 25 25 25 25 25 25 Final Carried 25 | 7 8 11 25 25 24 24 16 Class Distribution -------------------- 59% | Scavenger-Mutant 40% | Mutant Dominant Class ---------------- Mutant | -10/Materials Mutant | -10/Subcaves Scavenger-Mutant | -8/Materials Scavenger-Mutant | -7/Factory Scavenger-Mutant | -7/Lower Caves Mutant | -7/Lower Caves Mutant | -7/Data Miner Resources | -11 -10 -10 -8 -7 -7 -7 -7 ----------- Run | Yrd Mat Sub Mat Fac Low Low Dat Matter Collected 1831 | 205 125 154 458 553 198 138 . Remotely . | . . . . . . . . Salvage Created 2130 | 100 302 118 605 890 74 41 . Parts 114 | 5 12 7 28 58 3 1 . Haulers Intercepted 2 | . . . 2 . . . . Recyclers Shooed 5 | 1 2 . 2 . . . . Parts Field Recycled . | . . . . . . . . Retrieved Matter . | . . . . . . . . Parts Self-Destructed 7 | . . 5 . . 1 1 . Prevented . | . . . . . . . . Kills | -11 -10 -10 -8 -7 -7 -7 -7 ------- Run | Yrd Mat Sub Mat Fac Low Low Dat Combat Hostiles Destroyed 39 | . 5 5 7 17 4 1 . Guns 25 | . 3 4 3 13 1 1 . Cannons 4 | . 2 1 1 . . . . AOE 10 | . . . 3 4 3 . . Classes Destroyed 13 | 2 4 3 2 2 . . . Worker 4 | . 1 . 1 2 . . . Builder 3 | . 1 . 1 1 . . . Tunneler 1 | 1 . . . . . . . Hauler 2 | . . . 2 . . . . Recycler 5 | 1 1 . 3 . . . . Operator 1 | . . . 1 . . . . Watcher 3 | . 1 . . 2 . . . Swarmer 6 | . . 3 3 . . . . Grunt 22 | . 5 . 2 10 4 1 . Sentry 7 | . . 1 2 4 . . . Hunter 2 | . . . . 2 . . . Programmer 1 | . . . . 1 . . . Subdweller 1 | . . 1 . . . . . Best Kill Streak 7 | 2 4 3 3 7 4 1 . Combat Bots Only 4 | . 2 3 3 4 4 1 . Max Kills in Single Turn 3 | 1 1 1 3 3 2 1 . Gunslinging . | . . . . . . . . Exploded 3 | . . . 3 1 2 . . Melee . | . . . . . . . . Uniques/NPCs Destroyed . | . . . . . . . . Combat | -11 -10 -10 -8 -7 -7 -7 -7 -------- Run | Yrd Mat Sub Mat Fac Low Low Dat Hostile Shots Fired 450 | . 29 60 46 221 25 5 64 Missed 159 | . 10 26 16 78 7 1 21 Hits 291 | . 19 34 30 143 18 4 43 Melee 1 | . . . . . . 1 . Projectile 290 | . 19 34 30 143 18 3 43 Critical Strikes 8 | . . . 3 4 1 . . Part Disruptions 1 | . . . . . . . 1 Damage Taken 4885 | . 267 382 428 1408 348 43 2009 Core 864 | . 23 55 74 153 . . 559 Absorbed by Shields . | . . . . . . . . Redirected to Shielding 12 | . . . . . . . 12 Regen/Repaired (Parts) 103 | . . . 103 . . . . Core Remaining (%) 84 | 100 . 68 86 . . . . Volleys Fired 158 | 4 26 21 34 57 7 8 1 Largest 2 | 1 2 2 2 2 1 2 1 Hottest 89 | 20 70 86 86 89 80 53 28 Shots Fired 292 | 4 52 39 67 110 7 12 1 Gun 240 | 4 36 25 55 104 3 12 1 Cannon 41 | . 16 14 11 . . . . Launcher 11 | . . . 1 6 4 . . Special . | . . . . . . . . Kinetic 220 | 4 42 29 43 88 1 12 1 Thermal 61 | . 10 10 23 16 2 . . Explosive 11 | . . . 1 6 4 . . Electromagnetic . | . . . . . . . . Robot Hit Streak 28 | 4 5 7 9 28 9 3 4 Robot Miss Streak 6 | . 3 4 6 4 3 3 . Penetration Max 1 | . . . . 1 . . . Secondary Targets 2 | . 1 1 . . . . . Max Gunslinging Chain 1 | . 1 1 . . . . . Shots Hit Robots 176 | 4 27 19 37 76 5 7 1 Core Hits 111 | 3 14 7 20 52 13 2 . Critical Kills . | . . . . . . . . Critical Parts Destroyed . | . . . . . . . . Critical Strikes 4 | . . 1 . 3 . . . Burn 2 | . . . . 2 . . . Destroy 1 | . . . . 1 . . . Blast 1 | . . 1 . . . . . Melee Attacks 2 | . . . . 2 . . . Impact . | . . . . . . . . Slashing 2 | . . . . 2 . . . Piercing . | . . . . . . . . Sneak Attacks . | . . . . . . . . Combat Hostiles . | . . . . . . . . Follow-up Attacks . | . . . . . . . . Damage Inflicted 4213 | 53 412 262 813 2055 472 126 20 Guns 2665 | 53 273 131 541 1482 39 126 20 Cannons 397 | . 139 131 127 . . . . Explosions 1054 | . . . 124 497 433 . . Melee . | . . . . . . . . Ramming 97 | . . . 21 76 . . . Kinetic 2466 | 53 310 223 476 1242 16 126 20 Thermal 596 | . 102 39 192 240 23 . . Explosive 1054 | . . . 124 497 433 . . Electromagnetic . | . . . . . . . . Impact . | . . . . . . . . Slashing . | . . . . . . . . Piercing . | . . . . . . . . Highest Corruption 2 | . . . . 2 2 2 2 Average Corruption 1 | . . . . 1 2 2 2 Corruption Purged . | . . . . . . . . Corruption Blocked . | . . . . . . . . Effects 39 | . . . . 19 8 12 . Message Errors 10 | . . . . 3 3 4 . Matter Fused 9 | . . . . 5 . 4 . Heat Flow Errors 6 | . . . . 3 2 1 . Energy Discharges 2 | . . . . 1 1 . . Parts Rejected 1 | . . . . . 1 . . Data Loss (minor) 4 | . . . . 1 1 2 . Data Loss (major) 2 | . . . . 1 . 1 . Misfires 1 | . . . . 1 . . . Alerts 4 | . . . . 4 . . . Overload Shots . | . . . . . . . . Overflow Damage 22 | . . . . 22 . . . Projectiles . | . . . . . . . . Explosions . | . . . . . . . . Melee 22 | . . . . 22 . . . Knockbacks 6 | . 2 3 1 . . . . Impact . | . . . . . . . . Kinetic 6 | . 2 3 1 . . . . Secondary . | . . . . . . . . Self-Inflicted Damage 87 | . . . 10 37 40 . . Shots 3 | . . . . . 3 . . Rammed 3 | . . . 1 2 . . . Targets Rammed 3 | . . . 1 2 . . . Kicked . | . . . . . . . . Crushed . | . . . . . . . . Highest Temperature 310 | . 105 . 261 310 236 90 . Average Temperature 68 | . 33 . 73 79 76 22 . Received Heat Transfer 1083 | . 129 75 189 483 180 27 . Effects 1 | . . . 1 . . . . Energy Bleed 1 | . . . 1 . . . . Siege Activations . | . . . . . . . . Martial Activations . | . . . . . . . . Shielding Activations . | . . . . . . . . Robots Disrupted . | . . . . . . . . Combat Hostiles . | . . . . . . . . Robots Corrupted . | . . . . . . . . Combat Hostiles . | . . . . . . . . Parts Fried . | . . . . . . . . Impact Corruptions 1 | . . . . 1 . . . Robots Melted . | . . . . . . . . Combat Hostiles . | . . . . . . . . Parts Melted . | . . . . . . . . Heat Transferred 1530 | . 296 111 481 592 50 . . Parts Sabotaged . | . . . . . . . . Parts Stolen 1 | . . . . . . 1 . Parts Stripped . | . . . . . . . . Power Chain Reactions . | . . . . . . . . Alert | -11 -10 -10 -8 -7 -7 -7 -7 ------- Run | Yrd Mat Sub Mat Fac Low Low Dat Maximum Alert Level 1 | . . . . 1 . . . Low Security (%) 95 | 100 100 . 100 87 . . . Level 1 4 | . . . . 12 . . . Level 2 . | . . . . . . . . Level 3 . | . . . . . . . . Level 4 . | . . . . . . . . Level 5 . | . . . . . . . . High Security . | . . . . . . . . Max Security . | . . . . . . . . Peak Influence 236 | 5 68 . 72 236 . . . Initial 28 | . . . 18 28 . . . Average 46 | . 35 . 10 103 . . . Influence Increases 1188 | 10 144 155 269 500 90 20 . Destroy 0b10 Robot/C 760 | . 100 80 140 340 80 20 . Destroy 0b10 Robot/NC 95 | 10 20 . 40 25 . . . Destroy Leader 170 | . 22 . 34 104 10 . . Successful Hack 7 | . . . . 7 . . . Destroy Structure 36 | . 2 . 10 24 . . . Lose Combat Pursuer 120 | . . 75 45 . . . . Influence Decreases 1188 | 10 130 132 243 551 102 20 . Entered New Map 66 | . . 7 19 35 5 . . Time Decay 912 | 10 130 95 222 338 97 20 . Lost Part 72 | . . 30 2 40 . . . Purge Threat 138 | . . . . 138 . . . Squads Dispatched 10 | . 1 . 1 8 . . . Investigation 3 | . 1 . . 2 . . . Extermination 2 | . . . . 2 . . . Reinforcement 5 | . . . 1 4 . . . Assault . | . . . . . . . . Garrison . | . . . . . . . . Intercept . | . . . . . . . . Searches Triggered . | . . . . . . . . Construction Impeded . | . . . . . . . . Haulers Reinforced . | . . . . . . . . Active Scanning Responses . | . . . . . . . . Cargo Convoy Interrupts . | . . . . . . . . Stealth | -11 -10 -10 -8 -7 -7 -7 -7 --------- Run | Yrd Mat Sub Mat Fac Low Low Dat Distress Signals 4 | . 1 . 1 2 . . . Communications Jammed . | . . . . . . . . Distress Signals . | . . . . . . . . Times Spotted 69 | . 8 12 16 23 4 2 4 Peak Tracking Total 6 | . 4 4 6 6 4 1 4 Tactical Retreats 4 | . . 2 2 . . . . Traps | -11 -10 -10 -8 -7 -7 -7 -7 ------- Run | Yrd Mat Sub Mat Fac Low Low Dat Traps Triggered 3 | . 1 . . 2 . . . Indirectly . | . . . . . . . . Trap Hack Attempts . | . . . . . . . . Triggered . | . . . . . . . . Disarmed . | . . . . . . . . Reprogrammed . | . . . . . . . . Reused . | . . . . . . . . Traps Extracted . | . . . . . . . . Installed . | . . . . . . . . Triggered . | . . . . . . . . Machines | -11 -10 -10 -8 -7 -7 -7 -7 ---------- Run | Yrd Mat Sub Mat Fac Low Low Dat Machines Disabled . | . . . . . . . . Max in Single Turn . | . . . . . . . . Garrison Access 1 | . . . . 1 . . . Machines Repaired . | . . . . . . . . Machines Dismantled . | . . . . . . . . Machines Sabotaged . | . . . . . . . . Overloaded Fab Kills . | . . . . . . . . Hacking | -11 -10 -10 -8 -7 -7 -7 -7 --------- Run | Yrd Mat Sub Mat Fac Low Low Dat Machines Accessed 16 | . 1 . 4 6 . 1 4 Terminals 8 | . 1 . 3 4 . . . Fabricators . | . . . . . . . . Repair Stations 1 | . . . 1 . . . . Recycling Units 1 | . . . . 1 . . . Scanalyzers . | . . . . . . . . Garrison Access 1 | . . . . 1 . . . Total Hacks 47 | . 4 . 7 10 . 1 25 Successful 33 | . . . 3 4 . 1 25 Failed 14 | . 4 . 4 6 . . . Catastrophic 3 | . 1 . . 2 . . . Database Lockouts . | . . . . . . . . Manual 6 | . . . 2 4 . . . Terminals 17 | . 4 . 5 8 . . . Fabricators . | . . . . . . . . Repair Stations 2 | . . . 2 . . . . Recycling Units 1 | . . . . 1 . . . Scanalyzers . | . . . . . . . . Garrison Access 1 | . . . . 1 . . . Terminal Hacks 30 | . . . 1 3 . 1 25 Record 7 | . . . . . . . 7 Part Schematic 11 | . . . . . . . 11 Robot Schematic 4 | . . . . . . . 4 Prototype ID Bank 3 | . . . . . . . 3 Open Door 1 | . . . . . . 1 . Branch Access Points 2 | . . . 1 1 . . . Unreport Threat 1 | . . . . 1 . . . Zone Layout 1 | . . . . 1 . . . Fabricator Hacks . | . . . . . . . . Repair Station Hacks 2 | . . . 2 . . . . Scan Component 1 | . . . 1 . . . . Repair 1 | . . . 1 . . . . Recycling Unit Hacks . | . . . . . . . . Scanalyzer . | . . . . . . . . Garrison Access Hacks 1 | . . . . 1 . . . Seal Access 1 | . . . . 1 . . . Unauthorized Hacks . | . . . . . . . . Terminals . | . . . . . . . . Fabricators . | . . . . . . . . Repair Stations . | . . . . . . . . Recycling Units . | . . . . . . . . Scanalyzers . | . . . . . . . . Garrison Access . | . . . . . . . . Data Cores Recovered . | . . . . . . . . Used . | . . . . . . . . Hacking Detections 8 | . 1 . 3 4 . . . Full Trace Events 3 | . 1 . . 2 . . . Feedback Events . | . . . . . . . . Feedback Blocked . | . . . . . . . . Robot Schematics Acquired 4 | . . . . . . . 4 Robots Built . | . . . . . . . . Authchips . | . . . . . . . . Time . | . . . . . . . . Total Robot Build Rating . | . . . . . . . . Part Schematics Acquired 11 | . . . . . . . 11 Parts Built . | . . . . . . . . Authchips . | . . . . . . . . Time . | . . . . . . . . Total Part Build Rating . | . . . . . . . . Parts Repaired 1 | . . . 1 . . . . Time 26 | . . . 26 . . . . Parts Recycled . | . . . . . . . . Recycled Matter . | . . . . . . . . Retrieved Matter . | . . . . . . . . Retrieved Components . | . . . . . . . . Parts Scanalyzed . | . . . . . . . . Part Schematics Acquired . | . . . . . . . . Parts Damaged . | . . . . . . . . Bothacking | -11 -10 -10 -8 -7 -7 -7 -7 ------------ Run | Yrd Mat Sub Mat Fac Low Low Dat Used RIF Installer . | . . . . . . . . Robots Hacked . | . . . . . . . . Non-combat . | . . . . . . . . Combat . | . . . . . . . . Robot Hacks Applied . | . . . . . . . . Relay Couplers Released . | . . . . . . . . Fabnet Peak Effective % . | . . . . . . . . Robots Rewired . | . . . . . . . . Allies Hacked . | . . . . . . . . Hacks Repelled . | . . . . . . . . Allies | -11 -10 -10 -8 -7 -7 -7 -7 -------- Run | Yrd Mat Sub Mat Fac Low Low Dat Total Allies . | . . . . . . . . Largest Group . | . . . . . . . . Highest-Rated Group . | . . . . . . . . Highest-Rated Ally . | . . . . . . . . Total Orders . | . . . . . . . . Ally Attacks . | . . . . . . . . Total Damage . | . . . . . . . . Kills . | . . . . . . . . Allies Corrupted . | . . . . . . . . Allies Melted . | . . . . . . . . Intel | -11 -10 -10 -8 -7 -7 -7 -7 ------- Run | Yrd Mat Sub Mat Fac Low Low Dat Active Infowar (turns) 4792 | 91 296 257 1875 567 778 760 168 Sensors 1990 | . . . . 284 778 760 168 Seismic 2802 | 91 296 257 1875 283 . . . Robot Analysis Total 151 | . . . . . . . 151 Derelict Logs Recovered 6 | . . 3 . . 1 2 . Drone Launches . | . . . . . . . . Drone Recoveries . | . . . . . . . . Exploration | -11 -10 -10 -8 -7 -7 -7 -7 ------------- Run | Yrd Mat Sub Mat Fac Low Low Dat Turns Passed 6135 | 126 296 647 1922 1388 819 760 177 Spaces Moved 3099 | 66 133 407 640 713 495 523 122 Core 12 | 12 . . . . . . . Treads 224 | 53 118 . . 53 . . . Legs 25 | 1 . . . 19 . . 5 Wheels 2838 | . 15 407 640 641 495 523 117 Hover . | . . . . . . . . Flight . | . . . . . . . . Fastest Speed 50 | 50 140 140 135 120 145 130 130 Average Speed 143 | 150 157 140 142 148 145 133 136 Slowest Speed 400 | 160 160 215 215 400 145 145 260 Overloaded Moves . | . . . . . . . . Propulsion Burnouts . | . . . . . . . . Robots Hopped . | . . . . . . . . Potential Cave-ins . | . . . . . . . . Cave-ins Triggered . | . . . . . . . . Exploration Rate (%) 42 | 4 43 30 30 23 60 74 77 Regions Visited 7 Branch Regions 4 Pre-discovered Areas 32 | . . 1 . . . . 31 Known Exits Taken 4 | . . . 1 1 1 1 . Unknown Exits Taken 3 | 1 1 1 . . . . . Scrap Searched 3 | . . . . . 1 2 . Spaces Dug 6 | . . . . 6 . . . Terrain Destroyed 87 | . . . 8 37 41 1 . Melee 2 | . . . . 2 . . . Projectile 1 | . . . . . . 1 . AOE 84 | . . . 8 35 41 . . Terrain Rammed . | . . . . . . . . Walls Destroyed . | . . . . . . . . Machines Disabled . | . . . . . . . . Actions | -11 -10 -10 -8 -7 -7 -7 -7 --------- Run | Yrd Mat Sub Mat Fac Low Low Dat Total 4545 | 87 166 443 1596 957 588 576 132 Wait 1083 | . 2 5 871 87 82 36 . Move 3092 | 65 132 406 639 712 494 522 122 Hop . | . . . . . . . . Pick Up 66 | 5 1 4 26 28 . 2 . Fast Attach 27 | 9 . 2 4 11 . 1 . Attach 20 | . . . 5 7 1 1 6 Detach 6 | 2 . . 1 2 . 1 . Swap 37 | 1 4 4 5 18 3 1 1 Drop 50 | 1 1 1 10 31 . 4 2 Fire 158 | 4 26 21 34 57 7 8 1 Melee 2 | . . . . 2 . . . Ram 3 | . . . 1 2 . . . Kick . | . . . . . . . . Crush . | . . . . . . . . Escape Stasis . | . . . . . . . . Rewire 1 | . . . . . 1 . . Trap . | . . . . . . . . Miscellaneous . | . . . . . . . . Route ------- -11/Scrapyard -10/Materials (discovered 2 exits: [*Min] / [*Sub]) -10/Subcaves (discovered 2 exits: *Mat / *Rec) -8/Materials -7/Factory (discovered 2 exits: *Low x2) -7/Lower Caves -7/Lower Caves (discovered 2 exits: [*Fac] / *Dat) -7/Data Miner (discovered 1 exit: [*Pro]) History --------- Turn | Location | Event 2 | -11/Scrapyard | Discovered new exit (range 16) 127 | -11/Scrapyard | Entered Materials 242 | -10/Materials | Discovered new exit (range 10) 311 | -10/Materials | Build established: Mutant 416 | -10/Materials | Discovered new exit (range 6) 423 | -10/Materials | Entered Subcaves 424 | -10/Subcaves | Approached by a straggling Scientist 449 | -10/Subcaves | Learned location of Zion (-6) 549 | -10/Subcaves | Learned Materials trap positions 569 | -10/Subcaves | Identified exit to Recycling 1024 | -10/Subcaves | Discovered new exit (range 10) 1070 | -10/Subcaves | Entered Materials 1070 | -8/Materials | Evolved 4 slots: Propulsion x2, Utility x2 1071 | -8/Materials | Loaded intel: 22 trap records 1216 | -8/Materials | Repaired Lgt. Treads 1840 | -8/Materials | Build established: Scavenger-Mutant 2290 | -8/Materials | Discovered new exit (range 8) 2707 | -8/Materials | Identified exit to Factory 2992 | -8/Materials | Entered Factory 2992 | -7/Factory | Evolved 2 slots: Propulsion x2 4215 | -7/Factory | Identified exit to Lower Caves 4380 | -7/Factory | Entered Lower Caves 4501 | -7/Lower Caves | Encountered a Warlord checkpoint 4785 | -7/Lower Caves | Learned 4 Factory zone layouts 5135 | -7/Lower Caves | Discovered new exit (range 8) 5180 | -7/Lower Caves | Identified exit to Lower Caves 5199 | -7/Lower Caves | Entered another Lower Caves area 5256 | -7/Lower Caves | Discovered new exit (range 6) 5279 | -7/Lower Caves | Learned Factory trap positions 5713 | -7/Lower Caves | Build established: Mutant 5740 | -7/Lower Caves | Discovered new exit (range 8) 5757 | -7/Lower Caves | Identified exit to Data Miner 5959 | -7/Lower Caves | Entered Data Miner 5959 | -7/Data Miner | Discovered new exit (range 6) 5984 | -7/Data Miner | Met Data Miner 6008 | -7/Data Miner | Learned location of Section 7 (-3) 6008 | -7/Data Miner | Acquired the access code to Warlord's prototype stash 6036 | -7/Data Miner | Received God Mode back door access code from Data Miner 6089 | -7/Data Miner | Interfaced with the Data Conduit 6116 | -7/Data Miner | Core integrity fell below 50% 6129 | -7/Data Miner | Core integrity fell below 20% 6136 | -7/Data Miner | Destroyed by Enhanced Grunt with Neutron Cannon Last Messages --------------- 06087_ Data Miner disappears through a trap door. 06089_ Interfacing with system... Downloaded 151 analysis records. Downloaded 773 prototype IDs. Downloaded central machine database. Downloaded 30 destinations. Downloaded encryption format records. Connection remotely terminated. [Achievement: Unlimited Data] 06105_ Mic. Nuclear Core destroyed. 06107_ Imp. Medium Armor Plating destroyed. 06107_ Com. Wheel destroyed. 06109_ Med. Treads destroyed. 06114_ Arm. Huge Wheel destroyed. 06116_ Arm. Treads destroyed. 06118_ Imp. Medium Armor Plating destroyed. 06121_ Com. Wheel destroyed. 06121_ Imp. Carbon-fiber Leg destroyed. 06127_ Imp. Sensor Array destroyed. 06130_ Gauss Rifle destroyed. Map ----- +----------------------------------------------------+ | | | | | | | | | | | | | | | | | | | | | | | | | | | | | | | | | | | ????????????????????????????????????????? | | ????????????????????????????????????????? | | ????????????????????????????????????????? | | ????????????????????????????????????????? | | ????????????????????????????####????????? | | ############????#########?### #????????? | | """""""""""###### # # # ### #????????? | | """" """"""""# # # # ;# < ##????????? | | """" @ ######???? | | " g #???? | | " gg #???? | | g #???? | | " ##???? | | " "" " "" """"#####????? | | "" """ ###############????????? | | "" """"###??????????????????????? | | """" "#####????????????????????????? | | ###"## ! "#????????????????????????????? | | ??#"###[ "#????????????????????????????? | | ??#"### "#????????????????????????????? | | ??#"## "#????????????????????????????? | | ????## "#????????????????????????????? | | ????# "#????????????????????????????? | | ????### "#????????????????????????????? | | ??????# "##???????????????????????????? | | ?????## ""#???????????????????????????? | | ??#?## ""#???????????????????????????? | | ?##"#"X ""#???????????????????????????? | | ?""""" "####????????????????????????? | | ?""""" X"""""????????????????????????? | | ?##"#"X "##"#????????????????????????? | | ??#?## X""""#????????????????????????? | | ?????## "##"#????????????????????????? | +----------------------------------------------------+ Best States ------------- Heat Dissipation 34 Energy Generation 15 Energy Capacity 265 Matter Stores 300 Matter Capacity 300 Sight Range 16 Robot Scan Range 15 Terrain Scan Density 10 Armor Coverage 225 Resistance: EM 15 Utility Shielding 15 Evasion (%) 40 Recoil Reduction 3 Offensive Hacking 10 Item Schematics ----------------- Combat Drone Bay | -7/Data Miner | Free Lgt. Regenerative Plating | -7/Data Miner | Free Cld. Aerolev Unit | -7/Data Miner | Free Com. Ion Cannon | -7/Data Miner | Free Gravity Neutralizer | -7/Data Miner | Free Gyrokinetic Inverter | -7/Data Miner | Free Imp. Recalibrator | -7/Data Miner | Free Hyp. Gauss Cannon | -7/Data Miner | Free Phase Shifter | -7/Data Miner | Free Nanoactuators | -7/Data Miner | Free Impulse Thruster | -7/Data Miner | Free Robot Schematics ------------------ R-10 Processor | -7/Data Miner | Free L-41 Fighter | -7/Data Miner | Free P-70 Sage | -7/Data Miner | Free S-27 Virus | -7/Data Miner | Free Fabricated ------------ Nothing Repaired ---------- Lgt. Treads | 26% | -8/Materials Alien Tech Used ----------------- None Achievements -------------- Unlimited Data Challenges ------------ None Game ------ Seed AutogunPointyPit Manual? 0 Play Time 00:40:42 Cumulative 85.0 hours Start 2025.06.15 @ 18:47:49 End 2025.06.15 @ 19:37:02 Sessions 1 Manual Loads 0 Difficulty Rogue Special Mode None Game No. 56 Rogue 56 Adventurer 0 Explorer 0 Win Type - Total 8 Types 2/1/2/1/1/0/0/0/0/1 Lore% 57 Gallery% 55 Achievement% 59 Wizard Run 0 Options --------- Layout 0 ASCII 0 Keyboard 1 Movement Vi Keybinds 0 Fullscreen 2 Font 18/SmallcapsGlow Map View 76x50 Zoom Use 0% Tactical HUD 1 Map Filters NONE Filters NONE Steam 1 RUN: 88d97dbc-5b98-4d81-a09a-1877ac960adc